fUSD/lending_fUSD_20240613
["ID","MTS","AMOUNT","RATE_DAILY","PERIOD"]
[329358335,1718277122535,-158.58510325,0.00027271,2]
[329358336,1718277122559,-453.25,0.00027273,2]
[329358337,1718277122590,-150.0,0.000273,5]
[329358338,1718277122602,-167.25,0.00027323,2]
[329358339,1718277122618,-218.51742701,0.00027349,2]
[329358340,1718277122632,-218.51742701,0.00027355,2]
[329358341,1718277122655,-218.51742701,0.00027366,2]
[329358342,1718277122673,-156.17044263,0.00027388,2]
[329358343,1718277122712,-1183.25,0.00027396,3]
[329358344,1718277122734,-704.44,0.00027396,3]
[329358345,1718277122747,-500.0,0.00027396,3]
[329358346,1718277122759,-5852.16,0.00027396,3]
[329358347,1718277122771,-2891.73,0.00027396,3]
[329358348,1718277122788,-1318.26,0.00027396,3]
[329358349,1718277122806,-2337.62,0.00027396,3]
[329358350,1718277122833,-1185.47,0.00027396,3]
[329358351,1718277122854,-1475.74,0.00027396,3]
[329358352,1718277122868,-572.37,0.00027396,3]
[329358353,1718277122880,-646.81135684,0.00027397,2]
[329358354,1718277122906,-500.0,0.00027397,2]
[329358355,1718277122928,-500.0,0.00027397,2]
[329358356,1718277122962,-500.0,0.00027397,2]
[329358357,1718277122981,-500.0,0.00027397,2]
[329358358,1718277123005,-500.0,0.00027397,2]
[329358359,1718277123019,-500.0,0.00027397,2]
[329358360,1718277123041,-500.0,0.00027397,2]
[329358361,1718277123059,-500.0,0.00027397,2]
[329358362,1718277123070,-299.70563081,0.00027397,2]
[329358363,1718277123086,-500.0,0.00027397,2]
[329358364,1718277123101,-500.0,0.00027397,2]
[329358365,1718277123112,-500.0,0.00027397,2]
[329358366,1718277123127,-500.0,0.00027397,2]
[329358367,1718277123147,-152.66390094,0.00027397,2]
[329358368,1718277123177,-500.0,0.00027397,2]
[329358369,1718277123201,-151.39531814,0.00027397,2]
[329358370,1718277123221,-164.58165753,0.00027397,3]
[329358371,1718277123262,-190.27873587,0.00027397,3]
[329358372,1718277123278,-500.0,0.00027397,3]
[329358373,1718277123292,-151.0,0.00027397,7]
[329358374,1718277123307,-151.0,0.00027397,7]
[329358375,1718277123340,-151.0,0.00027397,7]
[329358376,1718277123351,-153.533329,0.00027397,7]
[329358377,1718277123362,-172.39,0.00027397,2]
[329358378,1718277123375,-150.0,0.00027397,2]
[329358379,1718277123391,-300.0,0.00027397,10]
[329358380,1718277123405,-300.0,0.00027397,10]
[329358381,1718277123422,-300.0,0.00027397,10]
[329358382,1718277123435,-300.0,0.00027397,10]
[329358383,1718277123491,-300.0,0.00027397,10]
[329358384,1718277123504,-303.0253,0.00027397,10]
[329358385,1718277123563,-1608.33890032,0.00027399,2]
[329358386,1718277123579,-303.0,0.000274,2]
[329358387,1718277123607,-2103.28914058,0.000274,2]
[329358388,1718277123620,-3587.87259836,0.000274,2]
[329358389,1718277123632,-1000.0,0.000274,2]
[329358390,1718277123648,-500.0,0.000274,2]
[329358391,1718277123663,-1200.0,0.000274,2]
[329358392,1718277123680,-654.0,0.000274,2]
[329358393,1718277123708,-200.0,0.000274,2]
[329358394,1718277123719,-222.76422777,0.000274,2]
[329358395,1718277123731,-1000.0,0.000274,2]
[329358396,1718277123745,-448.0,0.000274,2]
[329358397,1718277123759,-160.11629442,0.000274,2]
[329358398,1718277123774,-5775.06687645,0.000274,2]
[329358399,1718277123786,-156.28412014,0.000274,7]
[329358400,1718277123797,-156.28412014,0.000274,7]
[329358401,1718277123819,-156.28412014,0.000274,7]
[329358402,1718277123844,-156.28412014,0.000274,7]
[329358403,1718277123865,-156.28412014,0.000274,7]
[329358404,1718277123879,-156.28412014,0.000274,7]
[329358405,1718277123912,-156.28412014,0.000274,7]
[329358406,1718277123944,-156.78,0.000274,7]
[329358407,1718277123958,-250.12959222,0.000274,7]
[329358408,1718277123979,-250.12959222,0.000274,7]
[329358409,1718277123996,-250.12959222,0.000274,7]
[329358410,1718277124031,-250.12959222,0.000274,7]
[329358411,1718277124046,-250.12959222,0.000274,7]
[329358412,1718277124059,-250.12959222,0.000274,7]
[329358413,1718277124072,-250.12959222,0.000274,7]
[329358414,1718277124088,-250.12959222,0.000274,7]
[329358415,1718277124101,-250.12959222,0.000274,7]
[329358416,1718277124117,-250.12959222,0.000274,7]
[329358417,1718277124130,-250.12959222,0.000274,7]
[329358418,1718277124145,-256.06,0.000274,2]
[329358419,1718277124164,-157.86625063,0.00027413,2]
[329358420,1718277124186,-156.17044263,0.00027445,2]
[329358421,1718277124198,-152.1899555,0.00027475,2]
[329358422,1718277124216,-300.0,0.000275,2]
[329358423,1718277124238,-7172.38873472,0.000275,2]
[329358424,1718277124272,-151.0,0.000275,7]
[329358425,1718277124294,-250.12959222,0.00027508,7]
[329358426,1718277124314,-152.38627793,0.0002751,2]
[329358427,1718277124332,-628.5,0.0002751,3]
[329358428,1718277124345,-877.35,0.0002751,3]
[329358429,1718277124377,-1070.7,0.0002751,3]
[329358430,1718277124425,-500.0,0.0002751,3]
[329358431,1718277124448,-871.84,0.0002751,3]
[329358432,1718277124475,-1196.79,0.0002751,3]
[329358433,1718277124504,-2448.85,0.0002751,3]
[329358434,1718277124534,-748.9,0.0002751,3]
[329358435,1718277124549,-1584.05,0.0002751,3]
[329358436,1718277124564,-875.77,0.0002751,3]
[329358437,1718277124582,-896.33,0.0002751,3]
[329358438,1718277124602,-1393.21,0.0002751,3]
[329358439,1718277124666,-712.29,0.0002751,3]
[329358440,1718277124682,-3021.74,0.0002751,3]
[329358441,1718277124717,-2955.13,0.0002751,3]
[329358442,1718277124729,-1592.21,0.0002751,3]
[329358443,1718277124743,-1489.31,0.0002751,3]
[329358444,1718277124869,-1351.15,0.0002751,3]
[329358445,1718277124881,-1097.22,0.0002751,3]
[329358446,1718277124908,-1841.9,0.0002751,3]
[329358447,1718277124921,-500.0,0.0002751,3]
[329358448,1718277124958,-500.0,0.0002751,3]
[329358449,1718277124972,-1562.15,0.0002751,3]
[329358450,1718277125004,-1074.6,0.00027511,3]
[329358451,1718277125029,-31357.31,0.00027511,3]
[329358452,1718277125041,-1670.36,0.00027511,3]
[329358453,1718277125062,-1382.88,0.00027511,3]
[329358454,1718277125073,-739.94,0.00027511,3]
[329358455,1718277125090,-892.4,0.00027511,3]
[329358456,1718277125103,-1184.9,0.00027511,3]
[329358457,1718277125116,-585.64,0.00027511,3]
[329358458,1718277125133,-929.82,0.00027511,3]
[329358459,1718277125151,-623.27,0.00027511,3]
[329358460,1718277125165,-1120.48,0.00027511,3]
[329358461,1718277125186,-500.0,0.00027512,3]
[329358462,1718277125203,-653.07,0.00027512,3]
[329358463,1718277125237,-500.0,0.00027512,3]
[329358464,1718277125260,-1199.36,0.00027512,3]
[329358465,1718277125290,-760.53,0.00027512,3]
[329358466,1718277125318,-500.0,0.00027512,3]
[329358467,1718277125337,-500.0,0.00027512,3]
[329358468,1718277125361,-500.0,0.00027512,3]
[329358469,1718277125384,-1016.21,0.00027512,3]
[329358470,1718277125405,-485.04107886,0.00027512,3]
[329358471,1718277125421,-803.45,0.00027512,3]
[329358472,1718277125443,-500.0,0.00027512,3]
[329358473,1718277125470,-500.0,0.00027512,3]
[329358474,1718277125503,-500.0,0.00027512,3]
[329358475,1718277125526,-913.83,0.00027512,3]
[329358476,1718277125551,-878.65,0.00027512,3]
[329358477,1718277125574,-2296.66,0.00027512,3]
[329358478,1718277125593,-500.0,0.00027512,3]
[329358479,1718277125610,-762.45,0.00027512,3]
[329358480,1718277125641,-500.0,0.00027512,3]
[329358481,1718277125654,-555.03,0.00027512,3]
[329358482,1718277125671,-1924.86,0.00027512,3]
[329358483,1718277125686,-1949.34,0.00027512,3]
[329358484,1718277125705,-3080.34,0.00027512,3]
[329358485,1718277125723,-591.95117941,0.00027512,3]
[329358486,1718277125744,-500.0,0.00027512,3]
[329358487,1718277125764,-500.0,0.00027512,3]
[329358488,1718277125791,-907.62,0.00027512,3]
[329358489,1718277125804,-525.39,0.00027512,3]
[329358490,1718277125822,-500.0,0.00027512,3]
[329358491,1718277125839,-985.91,0.00027512,3]
[329358492,1718277125861,-500.0,0.00027512,3]
[329358493,1718277125880,-2729.07,0.00027512,3]
[329358494,1718277125899,-500.0,0.00027512,3]
[329358495,1718277125915,-3064.01,0.00027512,3]
[329358496,1718277125930,-640.1,0.00027512,3]
[329358497,1718277125949,-500.0,0.00027512,3]
[329358498,1718277125975,-2850.36,0.00027512,3]
[329358499,1718277125996,-500.0,0.00027513,3]
[329358500,1718277126017,-500.0,0.00027513,3]
[329358501,1718277126036,-500.0,0.00027513,3]
[329358502,1718277126048,-500.0,0.00027513,3]
[329358503,1718277126069,-543.44,0.00027513,3]
[329358504,1718277126087,-500.0,0.00027513,3]
[329358505,1718277126099,-545.19,0.00027513,3]
[329358506,1718277126115,-500.0,0.00027513,3]
[329358507,1718277126132,-866.32,0.00027513,3]
[329358508,1718277126143,-554.24,0.00027513,3]
[329358509,1718277126172,-794.39,0.00027513,3]
[329358510,1718277126184,-500.0,0.00027513,3]
[329358511,1718277126198,-500.0,0.00027513,3]
[329358512,1718277126212,-500.0,0.00027513,3]
[329358513,1718277126253,-200.0,0.00027513,3]
[329358514,1718277126266,-555.7,0.00027513,3]
[329358515,1718277126278,-1106.58,0.00027513,3]
[329358516,1718277126298,-187.85552906,0.00027513,3]
[329358517,1718277126309,-283.47,0.00027513,3]
[329358518,1718277126323,-500.0,0.00027513,3]
[329358519,1718277126344,-500.0,0.00027513,3]
[329358520,1718277126360,-1207.15,0.00027513,3]
[329358521,1718277126374,-500.0,0.00027513,3]
[329358522,1718277126392,-940.28,0.00027513,3]
[329358523,1718277126408,-633.48,0.00027513,3]
[329358524,1718277126420,-1695.46,0.00027513,3]
[329358525,1718277126432,-500.0,0.00027513,3]
[329358526,1718277126448,-1351.29,0.00027513,3]
[329358527,1718277126461,-500.0,0.00027513,3]
[329358528,1718277126474,-977.95,0.00027513,3]
[329358529,1718277126491,-557.92,0.00027513,3]
[329358530,1718277126510,-500.0,0.00027513,3]
[329358531,1718277126526,-869.98,0.00027513,3]
[329358532,1718277126539,-2538.97,0.00027513,3]
[329358533,1718277126550,-774.79,0.00027513,3]
[329358534,1718277126565,-500.0,0.00027513,3]
[329358535,1718277126587,-869.72,0.00027513,3]
[329358536,1718277126609,-2643.48,0.00027513,3]
[329358537,1718277126623,-1050.99,0.00027513,3]
[329358538,1718277126639,-500.0,0.00027513,3]
[329358539,1718277126659,-2325.51,0.00027513,3]
[329358540,1718277126696,-594.46,0.00027513,3]
[329358541,1718277126715,-6022.3,0.00027513,3]
[329358542,1718277126744,-1340.93,0.00027513,3]
[329358543,1718277126766,-525.87,0.00027513,3]
[329358544,1718277126785,-2801.14,0.00027513,3]
[329358545,1718277126802,-556.9,0.00027513,3]
[329358546,1718277126817,-1037.02,0.00027513,3]
[329358547,1718277126831,-788.09,0.00027513,3]
[329358548,1718277126844,-500.0,0.00027513,3]
[329358549,1718277126876,-1590.22,0.00027513,3]
[329358550,1718277126904,-1299.11,0.00027513,3]
[329358551,1718277126928,-1761.78,0.00027513,3]
[329358552,1718277126956,-1262.69,0.00027513,3]
[329358553,1718277126970,-8305.14,0.00027513,3]
[329358554,1718277126990,-4418.73,0.00027513,3]
[329358555,1718277127011,-500.0,0.00027513,3]
[329358556,1718277127032,-1444.06,0.00027513,3]
[329358557,1718277127053,-577.13,0.00027513,3]
[329358558,1718277127077,-500.0,0.00027513,3]
[329358559,1718277127096,-725.83,0.00027513,3]
[329358560,1718277127116,-1042.68,0.00027513,3]
[329358561,1718277127137,-500.0,0.00027513,3]
[329358562,1718277127148,-3100.67,0.00027513,3]
[329358563,1718277127162,-500.0,0.00027513,3]
[329358564,1718277127176,-518.8,0.00027513,3]
[329358565,1718277127200,-1727.08,0.00027513,3]
[329358566,1718277127223,-500.0,0.00027513,3]
[329358567,1718277127243,-500.0,0.00027513,3]
[329358568,1718277127264,-1122.65,0.00027513,3]
[329358569,1718277127284,-505.98,0.00027513,3]
[329358570,1718277127301,-1309.02,0.00027513,3]
[329358571,1718277127337,-662.75,0.00027513,3]
[329358572,1718277127365,-617.34,0.00027513,3]
[329358573,1718277127381,-983.88,0.00027513,3]
[329358574,1718277127395,-1386.52,0.00027513,3]
[329358575,1718277127411,-1442.64,0.00027513,3]
[329358576,1718277127424,-1828.6,0.00027513,3]
[329358577,1718277127441,-1892.77,0.00027513,3]
[329358578,1718277127506,-1002.34,0.00027513,3]
[329358579,1718277127536,-2616.45,0.00027513,3]
[329358580,1718277127568,-1657.94,0.00027513,3]
[329358581,1718277127580,-1131.64,0.00027513,3]
[329358582,1718277127596,-1100.13,0.00027513,3]
[329358583,1718277127608,-3181.1,0.00027513,3]
[329358584,1718277127630,-790.44,0.00027513,3]
[329358585,1718277127657,-218.51742701,0.00027526,2]
[329358586,1718277127671,-152.38627793,0.00027542,2]
[329358587,1718277127703,-695.20998317,0.00027543,2]
[329358588,1718277127724,-152.1899555,0.00027574,2]
[329358589,1718277127740,-156.17044263,0.00027579,2]
[329358590,1718277127759,-9969.72,0.000276,2]
[329358591,1718277127777,-3000.85,0.000276,2]
[329358592,1718277127793,-151.28937961,0.00027609,2]
[329358593,1718277127812,-700.0,0.0002767,2]
[329358594,1718277127831,-600.0,0.0002767,2]
[329358595,1718277127858,-4000.0,0.0002767,2]
[329358596,1718277127880,-3400.0,0.0002767,2]
[329358597,1718277127904,-1183.25,0.0002767,3]
[329358598,1718277127948,-704.44,0.0002767,3]
[329358599,1718277127962,-500.0,0.0002767,3]
[329358600,1718277127978,-5852.16,0.0002767,3]
[329358601,1718277128007,-2891.73,0.0002767,3]
[329358602,1718277128024,-1318.26,0.0002767,3]
[329358603,1718277128041,-2337.62,0.0002767,3]
[329358604,1718277128056,-1185.47,0.0002767,3]
[329358605,1718277128073,-1475.74,0.0002767,3]
[329358606,1718277128105,-572.37,0.0002767,3]
[329358607,1718277128125,-500.0,0.00027671,2]
[329358608,1718277128142,-500.0,0.00027671,3]
[329358609,1718277128159,-500.0,0.00027671,2]
[329358610,1718277128182,-524.05935471,0.00027671,2]
[329358611,1718277128199,-152.38627793,0.00027681,2]
[329358612,1718277128232,-152.96556495,0.00027695,2]
[329358613,1718277128247,-150.0,0.00027699,7]
[329358614,1718277128259,-2274.27,0.000277,2]
[329358615,1718277128272,-153.29131969,0.0002774,2]
[329358616,1718277128288,-526.20582968,0.00027747,2]
[329358617,1718277128302,-151.0,0.00027753,5]
[329358618,1718277128321,-1000.0,0.00027779,2]
[329358619,1718277128340,-526.20582968,0.0002778,2]
[329358620,1718277128367,-153.68250367,0.00027782,2]
[329358621,1718277128394,-628.5,0.00027784,3]
[329358622,1718277128411,-877.35,0.00027784,3]
[329358623,1718277128435,-1070.7,0.00027784,3]
[329358624,1718277128452,-500.0,0.00027784,3]
[329358625,1718277128471,-871.84,0.00027784,3]
[329358626,1718277128500,-1196.79,0.00027784,3]
[329358627,1718277128513,-2448.85,0.00027784,3]
[329358628,1718277128581,-748.9,0.00027784,3]
[329358629,1718277128597,-1584.05,0.00027784,3]
[329358630,1718277128612,-875.77,0.00027784,3]
[329358631,1718277128628,-896.33,0.00027784,3]
[329358632,1718277128645,-1393.21,0.00027784,3]
[329358633,1718277128662,-712.29,0.00027784,3]
[329358634,1718277128677,-3021.74,0.00027784,3]
[329358635,1718277128691,-2955.13,0.00027784,3]
[329358636,1718277128705,-1592.21,0.00027784,3]
[329358637,1718277128718,-1489.31,0.00027784,3]
[329358638,1718277128732,-1351.15,0.00027784,3]
[329358639,1718277128744,-1097.22,0.00027784,3]
[329358640,1718277128758,-1841.9,0.00027784,3]
[329358641,1718277128770,-500.0,0.00027784,3]
[329358642,1718277128792,-1562.15,0.00027784,3]
[329358643,1718277128836,-500.0,0.00027784,3]
[329358644,1718277128852,-1074.6,0.00027785,3]
[329358645,1718277128868,-31357.31,0.00027785,3]
[329358646,1718277128889,-1670.36,0.00027785,3]
[329358647,1718277128906,-1382.88,0.00027785,3]
[329358648,1718277128922,-739.94,0.00027785,3]
[329358649,1718277128935,-892.4,0.00027785,3]
[329358650,1718277128951,-1184.9,0.00027785,3]
[329358651,1718277128981,-585.64,0.00027785,3]
[329358652,1718277128997,-929.82,0.00027785,3]
[329358653,1718277129017,-623.27,0.00027785,3]
[329358654,1718277129035,-1120.48,0.00027785,3]
[329358655,1718277129056,-500.0,0.00027786,3]
[329358656,1718277129085,-653.07,0.00027786,3]
[329358657,1718277129098,-500.0,0.00027786,3]
[329358658,1718277129116,-1199.36,0.00027786,3]
[329358659,1718277129128,-760.53,0.00027786,3]
[329358660,1718277129142,-500.0,0.00027786,3]
[329358661,1718277129159,-500.0,0.00027786,3]
[329358662,1718277129216,-500.0,0.00027786,3]
[329358663,1718277129251,-1016.21,0.00027786,3]
[329358664,1718277129277,-803.45,0.00027786,3]
[329358665,1718277129292,-411.42694468,0.00027786,3]
[329358666,1718277129425,-500.0,0.00027786,3]
[329358667,1718277129447,-500.0,0.00027786,3]
[329358668,1718277129473,-913.83,0.00027786,3]
[329358669,1718277129498,-878.65,0.00027786,3]
[329358670,1718277129516,-2296.66,0.00027786,3]
[329358671,1718277129550,-500.0,0.00027786,3]
[329358672,1718277129567,-762.45,0.00027786,3]
[329358673,1718277129586,-500.0,0.00027786,3]
[329358674,1718277129613,-555.03,0.00027786,3]
[329358675,1718277129635,-1924.86,0.00027786,3]
[329358676,1718277129649,-1949.34,0.00027786,3]
[329358677,1718277129666,-3080.34,0.00027786,3]
[329358678,1718277129684,-500.0,0.00027786,3]
[329358679,1718277129707,-500.0,0.00027786,3]
[329358680,1718277129727,-907.62,0.00027786,3]
[329358681,1718277129752,-525.39,0.00027786,3]
[329358682,1718277129772,-500.0,0.00027786,3]
[329358683,1718277129788,-985.91,0.00027786,3]
[329358684,1718277129804,-500.0,0.00027786,3]
[329358685,1718277129817,-2729.07,0.00027786,3]
[329358686,1718277129840,-500.0,0.00027786,3]
[329358687,1718277129862,-3064.01,0.00027786,3]
[329358688,1718277129884,-640.1,0.00027786,3]
[329358689,1718277129900,-500.0,0.00027786,3]
[329358690,1718277129920,-2850.36,0.00027786,3]
[329358691,1718277129932,-500.0,0.00027787,3]
[329358692,1718277129951,-500.0,0.00027787,3]
[329358693,1718277129963,-500.0,0.00027787,3]
[329358694,1718277129980,-500.0,0.00027787,3]
[329358695,1718277129995,-543.44,0.00027787,3]
[329358696,1718277130007,-500.0,0.00027787,3]
[329358697,1718277130043,-545.19,0.00027787,3]
[329358698,1718277130069,-500.0,0.00027787,3]
[329358699,1718277130094,-866.32,0.00027787,3]
[329358700,1718277130108,-554.24,0.00027787,3]
[329358701,1718277130124,-794.39,0.00027787,3]
[329358702,1718277130136,-500.0,0.00027787,3]
[329358703,1718277130152,-500.0,0.00027787,3]
[329358704,1718277130168,-500.0,0.00027787,3]
[329358705,1718277130183,-337.23392622,0.00027787,3]
[329358706,1718277130195,-555.7,0.00027787,3]
[329358707,1718277130217,-1106.58,0.00027787,3]
[329358708,1718277130252,-283.47,0.00027787,3]
[329358709,1718277130262,-500.0,0.00027787,3]
[329358710,1718277130273,-500.0,0.00027787,3]
[329358711,1718277130288,-1207.15,0.00027787,3]
[329358712,1718277130301,-500.0,0.00027787,3]
[329358713,1718277130313,-940.28,0.00027787,3]
[329358714,1718277130324,-633.48,0.00027787,3]
[329358715,1718277130335,-1695.46,0.00027787,3]
[329358716,1718277130347,-500.0,0.00027787,3]
[329358717,1718277130358,-1351.29,0.00027787,3]
[329358718,1718277130380,-556.40619618,0.00027787,3]
[329358719,1718277130392,-977.95,0.00027787,3]
[329358720,1718277130404,-557.92,0.00027787,3]
[329358721,1718277130415,-500.0,0.00027787,3]
[329358722,1718277130428,-869.98,0.00027787,3]
[329358723,1718277130445,-2538.97,0.00027787,3]
[329358724,1718277130459,-774.79,0.00027787,3]
[329358725,1718277130476,-500.0,0.00027787,3]
[329358726,1718277130524,-869.72,0.00027787,3]
[329358727,1718277130541,-2643.48,0.00027787,3]
[329358728,1718277130553,-1050.99,0.00027787,3]
[329358729,1718277130569,-500.0,0.00027787,3]
[329358730,1718277130580,-594.46,0.00027787,3]
[329358731,1718277130595,-2325.51,0.00027787,3]
[329358732,1718277130610,-6022.3,0.00027787,3]
[329358733,1718277130622,-1340.93,0.00027787,3]
[329358734,1718277130639,-525.87,0.00027787,3]
[329358735,1718277130650,-2801.14,0.00027787,3]
[329358736,1718277130660,-556.9,0.00027787,3]
[329358737,1718277130671,-1037.02,0.00027787,3]
[329358738,1718277130684,-788.09,0.00027787,3]
[329358739,1718277130696,-500.0,0.00027787,3]
[329358740,1718277130708,-1590.22,0.00027787,3]
[329358741,1718277130720,-1299.11,0.00027787,3]
[329358742,1718277130731,-1761.78,0.00027787,3]
[329358743,1718277130743,-1262.69,0.00027787,3]
[329358744,1718277130766,-8305.14,0.00027787,3]
[329358745,1718277130779,-4418.73,0.00027787,3]
[329358746,1718277130804,-500.0,0.00027787,3]
[329358747,1718277130818,-1444.06,0.00027787,3]
[329358748,1718277130837,-577.13,0.00027787,3]
[329358749,1718277130850,-500.0,0.00027787,3]
[329358750,1718277130866,-725.83,0.00027787,3]
[329358751,1718277130881,-1042.68,0.00027787,3]
[329358752,1718277130897,-500.0,0.00027787,3]
[329358753,1718277130909,-3100.67,0.00027787,3]
[329358754,1718277130925,-500.0,0.00027787,3]
[329358755,1718277130955,-518.8,0.00027787,3]
[329358756,1718277130971,-1727.08,0.00027787,3]
[329358757,1718277130983,-500.0,0.00027787,3]
[329358758,1718277130995,-500.0,0.00027787,3]
[329358759,1718277131010,-1122.65,0.00027787,3]
[329358760,1718277131026,-505.98,0.00027787,3]
[329358761,1718277131038,-1309.02,0.00027787,3]
[329358762,1718277131053,-662.75,0.00027787,3]
[329358763,1718277131065,-617.34,0.00027787,3]
[329358764,1718277131078,-983.88,0.00027787,3]
[329358765,1718277131090,-1386.52,0.00027787,3]
[329358766,1718277131108,-1442.64,0.00027787,3]
[329358767,1718277131120,-1828.6,0.00027787,3]
[329358768,1718277131142,-1892.77,0.00027787,3]
[329358769,1718277131163,-1002.34,0.00027787,3]
[329358770,1718277131180,-2616.45,0.00027787,3]
[329358771,1718277131198,-1657.94,0.00027787,3]
[329358772,1718277131217,-1131.64,0.00027787,3]
[329358773,1718277131268,-1100.13,0.00027787,3]
[329358774,1718277131291,-3181.1,0.00027787,3]
[329358775,1718277131312,-790.44,0.00027787,3]
[329358776,1718277131333,-215.0,0.0002779,2]
[329358777,1718277131352,-150.0,0.000278,5]
[329358778,1718277131372,-250.12959222,0.00027807,7]
[329358779,1718277131393,-526.20582968,0.00027809,2]
[329358780,1718277131415,-151.28937961,0.00027816,2]
[329358781,1718277131439,-152.1899555,0.00027821,2]
[329358782,1718277131464,-169.68,0.00027824,2]
[329358783,1718277131506,-218.51742701,0.00027867,2]
[329358784,1718277131528,-1608.33890032,0.00027899,2]
[329358785,1718277131559,-246.37307268,0.000279,2]
[329358786,1718277131618,-155244.27718047,0.000279,2]
[329358787,1718277131637,-262.643214,0.000279,7]
[329358788,1718277131657,-152.96556495,0.00027905,2]
[329358789,1718277131675,-170.204094,0.00027926,2]
[329358790,1718277131692,-187.831712,0.00027926,2]
[329358791,1718277131709,-182.536433,0.00027926,2]
[329358792,1718277131729,-154.533978,0.00027926,2]
[329358793,1718277131747,-2261.50005,0.00027926,2]
[329358794,1718277131763,-176.826943,0.00027926,2]
[329358795,1718277131781,-181.905186,0.00027926,2]
[329358796,1718277131803,-2174.611811,0.00027926,2]
[329358797,1718277131819,-173.209281,0.00027926,2]
[329358798,1718277131836,-195.896619,0.00027926,2]
[329358799,1718277131852,-2252.515979,0.00027926,2]
[329358800,1718277131872,-543.6482,0.00027926,2]
[329358801,1718277131887,-319.139473,0.00027926,2]
[329358802,1718277131907,-180.635524,0.00027926,2]
[329358803,1718277131926,-182.601142,0.00027926,2]
[329358804,1718277131944,-153.655824,0.00027926,2]
[329358805,1718277131968,-181.687741,0.00027926,2]
[329358806,1718277131987,-334.408129,0.00027926,2]
[329358807,1718277132006,-176.826942,0.00027926,2]
[329358808,1718277132024,-6302.355318,0.00027926,2]
[329358809,1718277132039,-2100.785106,0.00027926,2]
[329358810,1718277132078,-173.209281,0.00027926,2]
[329358811,1718277132115,-8451.729823,0.00027926,2]
[329358812,1718277132134,-219.963226,0.00027926,2]
[329358813,1718277132152,-343.039361,0.00027926,2]
[329358814,1718277132167,-173.209281,0.00027926,2]
[329358815,1718277132182,-8147.185355,0.00027926,2]
[329358816,1718277132202,-218.51742701,0.00027929,2]
[329358817,1718277132251,-1183.25,0.00027944,3]
[329358818,1718277132272,-704.44,0.00027944,3]
[329358819,1718277132297,-500.0,0.00027944,3]
[329358820,1718277132311,-5852.16,0.00027944,3]
[329358821,1718277132327,-2891.73,0.00027944,3]
[329358822,1718277132342,-1318.26,0.00027944,3]
[329358823,1718277132362,-2337.62,0.00027944,3]
[329358824,1718277132378,-1185.47,0.00027944,3]
[329358825,1718277132394,-1475.74,0.00027944,3]
[329358826,1718277132409,-572.37,0.00027944,3]
[329358827,1718277132424,-500.0,0.00027945,2]
[329358828,1718277132441,-540.40283375,0.00027945,3]
[329358829,1718277132461,-156.17044263,0.00027964,2]
[329358830,1718277132477,-172.0,0.0002797,15]
[329358831,1718277132495,-246.64,0.0002797,15]
[329358832,1718277132515,-172.0,0.0002798,15]
[329358833,1718277132535,-150.5,0.0002798,15]
[329358834,1718277132564,-152.94225763,0.00027993,2]